[Event "*** MasterClass Titled Tuesday Blitz"]
[Site "Chess.com"]
[Date "2017.12.12"]
[Round "1"]
[White "Aygehovit1992"]
[Black "tteshan"]
[Result "1-0"]
[WhiteElo "2457"]
[BlackElo "2026"]
[TimeControl "180+2"]
[EndTime "13:02:11 PST"]
[Termination "Aygehovit1992 won by resignation"]

1. e4 {[%clk 0:03:01.9]} 1... c5 {[%clk 0:03:00.5]} 2. Nf3 {[%clk 0:03:00.9]}
2... e6 {[%clk 0:03:01.8]} 3. d4 {[%clk 0:03:01.1]} 3... cxd4 {[%clk 0:03:03.1]}
4. Nxd4 {[%clk 0:03:01.4]} 4... a6 {[%clk 0:03:04.5]} 5. Nc3 {[%clk 0:03:02.9]}
5... Qc7 {[%clk 0:03:04.8]} 6. Bd3 {[%clk 0:03:02.3]} 6... Bb4 {[%clk
0:03:00.2]} 7. Bd2 {[%clk 0:03:02.5]} 7... Nf6 {[%clk 0:02:56.5]} 8. O-O {[%clk
0:03:02.4]} 8... O-O {[%clk 0:02:55.8]} 9. Ncb5 {[%clk 0:03:01.5]} 9... axb5
{[%clk 0:02:37.5]} 10. Bxb4 {[%clk 0:03:01.4]} 10... Re8 {[%clk 0:02:32]} 11.
Nxb5 {[%clk 0:03:01.8]} 11... Qe5 {[%clk 0:02:17.7]} 12. Bd6 {[%clk 0:02:59.1]}
12... Qh5 {[%clk 0:02:08.3]} 13. Qxh5 {[%clk 0:02:57.6]} 13... Nxh5 {[%clk
0:02:09.3]} 14. Nc7 {[%clk 0:02:58.6]} 1-0

[Event "*** MasterClass Titled Tuesday Blitz"]
[Site "Chess.com"]
[Date "2017.12.12"]
[Round "1"]
[White "ohusbands"]
[Black "Mykola-Bortnyk"]
[Result "0-1"]
[WhiteElo "2368"]
[BlackElo "2691"]
[TimeControl "180+2"]
[EndTime "13:04:40 PST"]
[Termination "Mykola-Bortnyk won by resignation"]

1. e4 {[%clk 0:03:01.9]} 1... Nf6 {[%clk 0:03:00.9]} 2. e5 {[%clk 0:02:59.9]}
2... Nd5 {[%clk 0:03:02.2]} 3. d4 {[%clk 0:03:01.8]} 3... d6 {[%clk 0:03:03.1]}
4. Nf3 {[%clk 0:03:01.4]} 4... dxe5 {[%clk 0:03:04.1]} 5. Nxe5 {[%clk
0:03:02.1]} 5... c6 {[%clk 0:03:05.1]} 6. Be2 {[%clk 0:03:02.7]} 6... Bf5 {[%clk
0:03:05.7]} 7. O-O {[%clk 0:03:03.2]} 7... Nd7 {[%clk 0:03:06.8]} 8. Nf3 {[%clk
0:03:03.5]} 8... e6 {[%clk 0:03:04.1]} 9. c4 {[%clk 0:03:04.4]} 9... N5f6 {[%clk
0:03:04.8]} 10. Nc3 {[%clk 0:03:05.3]} 10... Bd6 {[%clk 0:03:03.2]} 11. Nh4
{[%clk 0:03:02.2]} 11... Bg6 {[%clk 0:03:04.1]} 12. Nxg6 {[%clk 0:02:56.5]}
12... hxg6 {[%clk 0:02:53.3]} 13. h3 {[%clk 0:02:58.4]} 13... Qc7 {[%clk
0:02:49]} 14. Bf3 {[%clk 0:02:50.9]} 14... O-O-O {[%clk 0:02:48.2]} 15. Qa4
{[%clk 0:02:45.7]} 15... Kb8 {[%clk 0:02:46.8]} 16. Be3 {[%clk 0:02:41.5]} 16...
Bh2+ {[%clk 0:02:47.2]} 17. Kh1 {[%clk 0:02:41.6]} 17... Bf4 {[%clk 0:02:49.1]}
18. Rac1 {[%clk 0:02:37.5]} 18... g5 {[%clk 0:02:46]} 19. d5 {[%clk 0:01:08.8]}
19... Bxe3 {[%clk 0:02:44.7]} 20. fxe3 {[%clk 0:01:08.3]} 20... g4 {[%clk
0:02:45.1]} 21. dxc6 {[%clk 0:00:58.7]} 21... Nb6 {[%clk 0:02:45.1]} 22. Qa3
{[%clk 0:00:42]} 22... gxf3 {[%clk 0:02:37.3]} 0-1

[Event "*** MasterClass Titled Tuesday Blitz"]
[Site "Chess.com"]
[Date "2017.12.12"]
[Round "1"]
[White "Quiet_Desperation"]
[Black "OparinGrigoriy"]
[Result "0-1"]
[WhiteElo "2369"]
[BlackElo "2695"]
[TimeControl "180+2"]
[EndTime "13:04:41 PST"]
[Termination "OparinGrigoriy won by checkmate"]

1. e4 {[%clk 0:03:01.9]} 1... c5 {[%clk 0:02:53.8]} 2. Nf3 {[%clk 0:03:01.3]}
2... d6 {[%clk 0:02:55.4]} 3. d4 {[%clk 0:03:02.2]} 3... cxd4 {[%clk 0:02:57.3]}
4. Nxd4 {[%clk 0:03:03.6]} 4... Nf6 {[%clk 0:02:59]} 5. Nc3 {[%clk 0:03:04.7]}
5... a6 {[%clk 0:03:00.6]} 6. Be3 {[%clk 0:03:05.6]} 6... e5 {[%clk 0:03:01.4]}
7. Nb3 {[%clk 0:03:06.8]} 7... Be6 {[%clk 0:03:01.9]} 8. f3 {[%clk 0:03:08.2]}
8... Be7 {[%clk 0:03:02.7]} 9. Qd2 {[%clk 0:03:09.5]} 9... Nbd7 {[%clk
0:03:03.9]} 10. O-O-O {[%clk 0:03:07.4]} 10... b5 {[%clk 0:03:05.4]} 11. g4
{[%clk 0:03:08.4]} 11... Nb6 {[%clk 0:03:06.9]} 12. Bxb6 {[%clk 0:03:06.9]}
12... Qxb6 {[%clk 0:03:07.1]} 13. Nd5 {[%clk 0:03:06.6]} 13... Nxd5 {[%clk
0:03:02.8]} 14. exd5 {[%clk 0:03:07.7]} 14... Bd7 {[%clk 0:03:04.4]} 15. Kb1
{[%clk 0:03:06.6]} 15... a5 {[%clk 0:03:02.7]} 16. Nc1 {[%clk 0:03:06.5]} 16...
a4 {[%clk 0:03:01.2]} 17. h4 {[%clk 0:03:06.7]} 17... Rc8 {[%clk 0:02:56.5]} 18.
g5 {[%clk 0:02:57.1]} 18... b4 {[%clk 0:02:56.7]} 19. Bh3 {[%clk 0:02:47.4]}
19... Bxh3 {[%clk 0:02:57.5]} 20. Rxh3 {[%clk 0:02:48.2]} 20... O-O {[%clk
0:02:58.4]} 21. f4 {[%clk 0:02:33.3]} 21... Rc4 {[%clk 0:02:40.1]} 22. f5 {[%clk
0:02:26.1]} 22... Rfc8 {[%clk 0:02:36.7]} 23. f6 {[%clk 0:02:22.5]} 23... Bd8
{[%clk 0:02:33.1]} 24. fxg7 {[%clk 0:02:15.6]} 24... Rxc2 {[%clk 0:02:25.4]} 25.
Qe3 {[%clk 0:02:04.9]} 25... a3 {[%clk 0:02:15.8]} 26. bxa3 {[%clk 0:01:50.5]}
26... Rb2+ {[%clk 0:01:58.7]} 27. Ka1 {[%clk 0:01:49.7]} 27... bxa3 {[%clk
0:01:47.5]} 28. Qxb6 {[%clk 0:01:48.7]} 28... Bxb6 {[%clk 0:01:49.4]} 29. Rb3
{[%clk 0:01:48.5]} 29... Bd4 {[%clk 0:01:48.3]} 30. Rxd4 {[%clk 0:01:48]} 30...
Rxc1# {[%clk 0:01:48.5]} 0-1

[Event "*** MasterClass Titled Tuesday Blitz"]
[Site "Chess.com"]
[Date "2017.12.12"]
[Round "1"]
[White "robbykevlishvili"]
[Black "FearNoEvil12"]
[Result "0-1"]
[WhiteElo "2438"]
[BlackElo "2051"]
[TimeControl "180+2"]
[EndTime "13:04:59 PST"]
[Termination "FearNoEvil12 won by resignation"]

1. e4 {[%clk 0:03:01.9]} 1... a6 {[%clk 0:02:59.6]} 2. d4 {[%clk 0:03:02.3]}
2... b5 {[%clk 0:03:00.9]} 3. Nf3 {[%clk 0:03:00.1]} 3... Bb7 {[%clk 0:03:02.3]}
4. Bd3 {[%clk 0:03:00.6]} 4... e6 {[%clk 0:03:03.8]} 5. a4 {[%clk 0:02:58.8]}
5... b4 {[%clk 0:03:02.9]} 6. O-O {[%clk 0:02:59.1]} 6... Nf6 {[%clk 0:03:04.2]}
7. Nbd2 {[%clk 0:02:57.8]} 7... d6 {[%clk 0:03:04.4]} 8. Re1 {[%clk 0:02:57.5]}
8... Nbd7 {[%clk 0:03:04.4]} 9. a5 {[%clk 0:02:54.5]} 9... Rg8 {[%clk
0:03:03.8]} 10. d5 {[%clk 0:02:52.8]} 10... e5 {[%clk 0:03:00.6]} 11. Nc4 {[%clk
0:02:50.6]} 11... h6 {[%clk 0:02:57.7]} 12. Bd2 {[%clk 0:02:49.7]} 12... g5
{[%clk 0:02:57]} 13. Bxb4 {[%clk 0:02:50.3]} 13... g4 {[%clk 0:02:55.6]} 14.
Nfd2 {[%clk 0:02:51.3]} 14... h5 {[%clk 0:02:56.2]} 15. Ne3 {[%clk 0:02:52.6]}
15... Bc8 {[%clk 0:02:55.1]} 16. c4 {[%clk 0:02:50.9]} 16... Nc5 {[%clk
0:02:51.9]} 17. Bc2 {[%clk 0:02:51.8]} 17... h4 {[%clk 0:02:46.9]} 18. Nf5
{[%clk 0:02:48.5]} 18... Bxf5 {[%clk 0:02:44.9]} 19. exf5 {[%clk 0:02:45]} 19...
Ncd7 {[%clk 0:02:43.8]} 20. Bc3 {[%clk 0:02:43.6]} 20... g3 {[%clk 0:02:40.2]}
21. fxg3 {[%clk 0:02:44.7]} 21... hxg3 {[%clk 0:02:41.3]} 22. h3 {[%clk
0:02:46.3]} 22... Ng4 {[%clk 0:02:38.8]} 23. Ne4 {[%clk 0:02:44.3]} 23... Qh4
{[%clk 0:02:35.1]} 24. Qf3 {[%clk 0:02:43.5]} 24... Nf2 {[%clk 0:02:21.1]} 25.
b3 {[%clk 0:02:42.2]} 25... Bh6 {[%clk 0:01:57.4]} 26. Nxf2 {[%clk 0:02:35]}
26... gxf2+ {[%clk 0:01:56.3]} 27. Qxf2 {[%clk 0:02:36]} 27... Qxh3 {[%clk
0:01:57.1]} 28. Bd2 {[%clk 0:02:32.8]} 28... Ke7 {[%clk 0:01:37.1]} 29. f6+
{[%clk 0:02:31]} 29... Nxf6 {[%clk 0:01:33.4]} 30. Rf1 {[%clk 0:02:18.9]} 30...
Rxg2+ {[%clk 0:01:29.2]} 31. Qxg2 {[%clk 0:02:17]} 31... Rg8 {[%clk 0:01:30.7]}
32. Rf2 {[%clk 0:02:12.7]} 32... Rxg2+ {[%clk 0:01:26.5]} 33. Rxg2 {[%clk
0:02:13.7]} 33... Bxd2 {[%clk 0:01:22]} 0-1

[Event "*** MasterClass Titled Tuesday Blitz"]
[Site "Chess.com"]
[Date "2017.12.12"]
[Round "1"]
[White "dawtonlms"]
[Black "chidori_boruto"]
[Result "1/2-1/2"]
[WhiteElo "2248"]
[BlackElo "2521"]
[TimeControl "180+2"]
[EndTime "13:05:01 PST"]
[Termination "Game drawn by agreement"]

1. e4 {[%clk 0:03:01.9]} 1... c6 {[%clk 0:03:00.9]} 2. d4 {[%clk 0:03:02.5]}
2... d5 {[%clk 0:03:02]} 3. exd5 {[%clk 0:03:04.1]} 3... cxd5 {[%clk 0:03:03.1]}
4. c4 {[%clk 0:03:05.7]} 4... Nf6 {[%clk 0:03:03.7]} 5. Nc3 {[%clk 0:03:05.1]}
5... e6 {[%clk 0:03:04.8]} 6. Nf3 {[%clk 0:03:03.9]} 6... Bb4 {[%clk 0:03:04.9]}
7. cxd5 {[%clk 0:03:05]} 7... Nxd5 {[%clk 0:03:05]} 8. Bd2 {[%clk 0:03:06.6]}
8... Nc6 {[%clk 0:03:05.8]} 9. Bd3 {[%clk 0:03:07.6]} 9... O-O {[%clk
0:03:06.7]} 10. O-O {[%clk 0:03:08.5]} 10... Be7 {[%clk 0:03:07.9]} 11. a3
{[%clk 0:03:09.5]} 11... Bf6 {[%clk 0:03:06.4]} 12. Qe2 {[%clk 0:03:06.9]} 12...
Nxd4 {[%clk 0:02:38]} 13. Nxd4 {[%clk 0:03:01.8]} 13... Bxd4 {[%clk 0:02:38.8]}
14. Bxh7+ {[%clk 0:02:54.3]} 14... Kxh7 {[%clk 0:02:39.4]} 15. Qd3+ {[%clk
0:02:54.7]} 15... Kg8 {[%clk 0:02:29.5]} 16. Qxd4 {[%clk 0:02:54]} 16... Nxc3
{[%clk 0:02:23.9]} 17. Bxc3 {[%clk 0:02:54.7]} 17... Qxd4 {[%clk 0:02:23.7]} 18.
Bxd4 {[%clk 0:02:55.7]} 18... Bd7 {[%clk 0:02:19.7]} 19. Rac1 {[%clk 0:02:55.9]}
19... Bc6 {[%clk 0:02:20.8]} 20. Rfd1 {[%clk 0:02:53.5]} 20... Rfd8 {[%clk
0:02:14.3]} 21. Be3 {[%clk 0:02:49.4]} 21... a6 {[%clk 0:01:56.4]} 22. Bb6
{[%clk 0:02:47.8]} 22... Rdc8 {[%clk 0:01:55.6]} 23. f3 {[%clk 0:02:45.3]} 23...
f6 {[%clk 0:01:53.1]} 24. Rd6 {[%clk 0:02:43.4]} 24... Bd5 {[%clk 0:01:48]} 25.
Rxc8+ {[%clk 0:02:19.5]} 25... Rxc8 {[%clk 0:01:49.9]} 26. Rd8+ {[%clk
0:02:20.9]} 26... Rxd8 {[%clk 0:01:50.2]} 27. Bxd8 {[%clk 0:02:22.8]} 27... Kf7
{[%clk 0:01:50.6]} 28. Kf2 {[%clk 0:02:23.2]} 28... Ke8 {[%clk 0:01:51.4]} 29.
Bb6 {[%clk 0:02:23]} 29... Kd7 {[%clk 0:01:52.5]} 30. Ke3 {[%clk 0:02:22.4]}
30... Kc6 {[%clk 0:01:53.5]} 31. Bd4 {[%clk 0:02:22.9]} 31... Kb5 {[%clk
0:01:47.8]} 32. Kd3 {[%clk 0:02:17.1]} 32... a5 {[%clk 0:01:44.7]} 33. h4 {[%clk
0:02:16.8]} 33... Bc4+ {[%clk 0:01:31.8]} 34. Ke3 {[%clk 0:02:12.8]} 34... Bd5
{[%clk 0:01:31.8]} 35. Kd3 {[%clk 0:02:13.5]} 35... Bc4+ {[%clk 0:01:32.6]} 36.
Ke3 {[%clk 0:02:14.4]} 36... Bd5 {[%clk 0:01:33.8]} 1/2-1/2

[Event "*** MasterClass Titled Tuesday Blitz"]
[Site "Chess.com"]
[Date "2017.12.12"]
[Round "1"]
[White "Scott-fox21"]
[Black "vpantev"]
[Result "0-1"]
[WhiteElo "2138"]
[BlackElo "2473"]
[TimeControl "180+2"]
[EndTime "13:05:25 PST"]
[Termination "vpantev won by resignation"]

1. d4 {[%clk 0:03:01.9]} 1... Nf6 {[%clk 0:03:00.2]} 2. c4 {[%clk 0:03:02.6]}
2... e6 {[%clk 0:03:00.6]} 3. Nc3 {[%clk 0:03:03.4]} 3... Bb4 {[%clk 0:03:01]}
4. a3 {[%clk 0:03:04.5]} 4... Bxc3+ {[%clk 0:03:01.8]} 5. bxc3 {[%clk
0:03:06.4]} 5... c5 {[%clk 0:03:00.8]} 6. e3 {[%clk 0:03:07.2]} 6... Nc6 {[%clk
0:03:01.5]} 7. Bd3 {[%clk 0:03:08.2]} 7... O-O {[%clk 0:02:58.9]} 8. Ne2 {[%clk
0:03:09]} 8... d6 {[%clk 0:02:59.9]} 9. e4 {[%clk 0:02:41.4]} 9... cxd4 {[%clk
0:02:54.3]} 10. cxd4 {[%clk 0:02:39.6]} 10... e5 {[%clk 0:02:55.3]} 11. d5
{[%clk 0:02:16]} 11... Nb8 {[%clk 0:02:55.9]} 12. O-O {[%clk 0:02:15.1]} 12...
Nbd7 {[%clk 0:02:56.6]} 13. Ng3 {[%clk 0:02:04]} 13... Nc5 {[%clk 0:02:56.8]}
14. Bc2 {[%clk 0:02:03.2]} 14... b6 {[%clk 0:02:49.9]} 15. Bg5 {[%clk
0:02:03.2]} 15... h6 {[%clk 0:02:50.6]} 16. Be3 {[%clk 0:01:53.7]} 16... Qc7
{[%clk 0:02:50.9]} 17. h3 {[%clk 0:01:41.2]} 17... Re8 {[%clk 0:02:44.7]} 18.
Qf3 {[%clk 0:01:30.3]} 18... Qe7 {[%clk 0:02:43]} 19. Nf5 {[%clk 0:01:10.8]}
19... Bxf5 {[%clk 0:02:43.2]} 20. exf5 {[%clk 0:01:08.2]} 20... Rac8 {[%clk
0:02:36.5]} 21. Qg3 {[%clk 0:01:05.4]} 21... Kh8 {[%clk 0:02:31.4]} 22. f4
{[%clk 0:00:58.7]} 22... Ncd7 {[%clk 0:02:24.8]} 23. Bd3 {[%clk 0:00:47.9]}
23... exf4 {[%clk 0:02:23.5]} 24. Bxf4 {[%clk 0:00:48.6]} 24... Ne5 {[%clk
0:02:24.6]} 25. Rae1 {[%clk 0:00:47.4]} 25... Nh5 {[%clk 0:02:23.8]} 26. Qe3
{[%clk 0:00:38.4]} 26... Nxf4 {[%clk 0:02:23.4]} 27. Rxf4 {[%clk 0:00:33.4]}
27... Nxd3 {[%clk 0:02:21.7]} 0-1

[Event "*** MasterClass Titled Tuesday Blitz"]
[Site "Chess.com"]
[Date "2017.12.12"]
[Round "1"]
[White "GrigorGrigorov"]
[Black "calemcc"]
[Result "1-0"]
[WhiteElo "2563"]
[BlackElo "2276"]
[TimeControl "180+2"]
[EndTime "13:05:55 PST"]
[Termination "GrigorGrigorov won by resignation"]

1. d4 {[%clk 0:02:58.4]} 1... d5 {[%clk 0:02:56.2]} 2. c4 {[%clk 0:02:59.1]}
2... e6 {[%clk 0:02:57.8]} 3. Nc3 {[%clk 0:02:59.2]} 3... c6 {[%clk 0:02:59.3]}
4. cxd5 {[%clk 0:02:57.3]} 4... exd5 {[%clk 0:03:01.2]} 5. Bf4 {[%clk
0:02:57.1]} 5... Bf5 {[%clk 0:03:01.7]} 6. e3 {[%clk 0:02:57.3]} 6... Nf6 {[%clk
0:03:00.2]} 7. Nge2 {[%clk 0:02:57]} 7... Bd6 {[%clk 0:03:00]} 8. Ng3 {[%clk
0:02:50]} 8... Bg4 {[%clk 0:01:17.1]} 9. f3 {[%clk 0:02:41.9]} 9... Bxf4 {[%clk
0:01:11.3]} 10. exf4 {[%clk 0:02:42.5]} 10... Be6 {[%clk 0:01:06.5]} 11. Bd3
{[%clk 0:02:40.4]} 11... O-O {[%clk 0:01:05.4]} 12. O-O {[%clk 0:02:41]} 12...
Re8 {[%clk 0:01:01.1]} 13. Qd2 {[%clk 0:02:41.2]} 13... Qd6 {[%clk 0:00:58.8]}
14. Rfe1 {[%clk 0:02:38.4]} 14... Na6 {[%clk 0:00:51.3]} 15. a3 {[%clk 0:02:36]}
15... c5 {[%clk 0:00:44.4]} 16. Bxa6 {[%clk 0:02:30]} 16... cxd4 {[%clk
0:00:37.3]} 17. Qxd4 {[%clk 0:02:30.5]} 17... Qxa6 {[%clk 0:00:36.2]} 18. Re3
{[%clk 0:02:24.1]} 18... Rad8 {[%clk 0:00:33]} 19. Rae1 {[%clk 0:02:23.5]} 19...
Qc6 {[%clk 0:00:32.5]} 20. Re5 {[%clk 0:02:16]} 20... b6 {[%clk 0:00:26.9]} 21.
h4 {[%clk 0:02:07.8]} 21... h6 {[%clk 0:00:21.6]} 22. Nf1 {[%clk 0:02:07.2]}
22... Nd7 {[%clk 0:00:19]} 23. R5e2 {[%clk 0:02:06.9]} 23... Nc5 {[%clk
0:00:19.6]} 24. f5 {[%clk 0:02:00.6]} 24... Bxf5 {[%clk 0:00:19.7]} 25. Rxe8+
{[%clk 0:02:01.5]} 25... Rxe8 {[%clk 0:00:21.5]} 26. Rxe8+ {[%clk 0:02:02.2]}
26... Qxe8 {[%clk 0:00:23.3]} 27. Nxd5 {[%clk 0:02:03.7]} 27... Be6 {[%clk
0:00:23.6]} 28. Nfe3 {[%clk 0:02:02.1]} 28... Qc8 {[%clk 0:00:25]} 29. Ne7+
{[%clk 0:02:02.3]} 1-0

[Event "*** MasterClass Titled Tuesday Blitz"]
[Site "Chess.com"]
[Date "2017.12.12"]
[Round "1"]
[White "jbj"]
[Black "krzyzan94"]
[Result "0-1"]
[WhiteElo "2299"]
[BlackElo "2606"]
[TimeControl "180+2"]
[EndTime "13:06:00 PST"]
[Termination "krzyzan94 won by resignation"]

1. e4 {[%clk 0:03:01.9]} 1... c5 {[%clk 0:03:00.1]} 2. d4 {[%clk 0:03:02.8]}
2... cxd4 {[%clk 0:03:00.6]} 3. c3 {[%clk 0:03:04.1]} 3... d3 {[%clk 0:03:01.9]}
4. Bxd3 {[%clk 0:03:04.5]} 4... g6 {[%clk 0:03:03.2]} 5. c4 {[%clk 0:03:05.5]}
5... Bg7 {[%clk 0:03:04.6]} 6. Nf3 {[%clk 0:03:06.9]} 6... Nc6 {[%clk
0:03:06.1]} 7. O-O {[%clk 0:03:08]} 7... Nf6 {[%clk 0:03:06.7]} 8. Nc3 {[%clk
0:03:08.6]} 8... d6 {[%clk 0:03:00.8]} 9. h3 {[%clk 0:03:09.7]} 9... O-O {[%clk
0:03:01.6]} 10. Be3 {[%clk 0:03:10.8]} 10... Nd7 {[%clk 0:03:00.9]} 11. Rc1
{[%clk 0:03:11.7]} 11... Nc5 {[%clk 0:02:59.4]} 12. Bb1 {[%clk 0:03:12.7]} 12...
a5 {[%clk 0:02:58.9]} 13. b3 {[%clk 0:03:11.8]} 13... f5 {[%clk 0:02:48.2]} 14.
exf5 {[%clk 0:02:59.6]} 14... Bxf5 {[%clk 0:02:50]} 15. Bxf5 {[%clk 0:02:55.2]}
15... Rxf5 {[%clk 0:02:51.8]} 16. Nd4 {[%clk 0:02:55.7]} 16... Nxd4 {[%clk
0:02:45.6]} 17. Bxd4 {[%clk 0:02:57.6]} 17... Qf8 {[%clk 0:02:41.9]} 18. Bxg7
{[%clk 0:02:48.2]} 18... Qxg7 {[%clk 0:02:43.7]} 19. Nd5 {[%clk 0:02:42.2]}
19... Raf8 {[%clk 0:02:40.1]} 20. Rc2 {[%clk 0:02:38.7]} 20... R5f7 {[%clk
0:02:28.7]} 21. Re2 {[%clk 0:02:35.5]} 21... e5 {[%clk 0:02:22.7]} 22. Qd2
{[%clk 0:02:28.3]} 22... h5 {[%clk 0:02:16.6]} 23. Qxa5 {[%clk 0:02:27.8]} 23...
g5 {[%clk 0:02:15.1]} 24. Re3 {[%clk 0:02:24.4]} 24... g4 {[%clk 0:02:12.5]} 25.
hxg4 {[%clk 0:02:15.7]} 25... hxg4 {[%clk 0:02:14.3]} 26. Qb6 {[%clk 0:02:06.9]}
26... Qh6 {[%clk 0:02:10]} 27. f4 {[%clk 0:01:03.1]} 27... exf4 {[%clk
0:02:03.1]} 28. Re7 {[%clk 0:00:35.2]} 28... g3 {[%clk 0:01:57.8]} 0-1

[Event "*** MasterClass Titled Tuesday Blitz"]
[Site "Chess.com"]
[Date "2017.12.12"]
[Round "1"]
[White "Big_Fishy"]
[Black "sandromareco"]
[Result "0-1"]
[WhiteElo "2345"]
[BlackElo "2658"]
[TimeControl "180+2"]
[EndTime "13:06:06 PST"]
[Termination "sandromareco won by resignation"]

1. d4 {[%clk 0:03:01.9]} 1... Nf6 {[%clk 0:02:58.8]} 2. Nc3 {[%clk 0:03:02.4]}
2... d5 {[%clk 0:02:59.4]} 3. Bf4 {[%clk 0:03:02.7]} 3... a6 {[%clk 0:02:58.8]}
4. e3 {[%clk 0:03:02.9]} 4... Bf5 {[%clk 0:02:59.4]} 5. f3 {[%clk 0:03:03]} 5...
Bg6 {[%clk 0:02:59]} 6. g4 {[%clk 0:02:59.7]} 6... e6 {[%clk 0:02:59.2]} 7. h4
{[%clk 0:02:59]} 7... h5 {[%clk 0:02:59.6]} 8. g5 {[%clk 0:02:59.4]} 8... Nfd7
{[%clk 0:03:00.5]} 9. Bd3 {[%clk 0:02:56.8]} 9... Bxd3 {[%clk 0:03:00.7]} 10.
Qxd3 {[%clk 0:02:57.6]} 10... g6 {[%clk 0:03:02.1]} 11. e4 {[%clk 0:02:57]}
11... c6 {[%clk 0:03:02.7]} 12. O-O-O {[%clk 0:02:56.6]} 12... Bg7 {[%clk
0:03:02.6]} 13. Nge2 {[%clk 0:02:50.7]} 13... a5 {[%clk 0:03:03.3]} 14. Bd6
{[%clk 0:02:46.9]} 14... Nb6 {[%clk 0:03:03.2]} 15. Be5 {[%clk 0:02:36.1]} 15...
Bxe5 {[%clk 0:03:03.7]} 16. dxe5 {[%clk 0:02:36.7]} 16... N8d7 {[%clk
0:03:04.9]} 17. f4 {[%clk 0:02:35.7]} 17... a4 {[%clk 0:02:57.7]} 18. exd5
{[%clk 0:02:22.2]} 18... cxd5 {[%clk 0:02:58.5]} 19. Nb5 {[%clk 0:02:20.3]}
19... Nc4 {[%clk 0:02:58.8]} 20. Ned4 {[%clk 0:02:02.3]} 20... Qb6 {[%clk
0:02:54.6]} 21. Qc3 {[%clk 0:01:14.8]} 21... O-O {[%clk 0:02:52.1]} 22. b3
{[%clk 0:00:58.8]} 22... axb3 {[%clk 0:02:52.1]} 23. axb3 {[%clk 0:00:57.3]}
23... Na3 {[%clk 0:02:35.1]} 24. Nxa3 {[%clk 0:00:56.4]} 24... Rxa3 {[%clk
0:02:35.8]} 25. Kb2 {[%clk 0:00:57.7]} 25... Ra5 {[%clk 0:02:33.8]} 26. Ra1
{[%clk 0:00:56.3]} 26... Rc5 {[%clk 0:02:35]} 27. Qd3 {[%clk 0:00:54.5]} 27...
Rfc8 {[%clk 0:02:34.7]} 28. Rh2 {[%clk 0:00:47.3]} 28... Qb4 {[%clk 0:02:29]}
29. Ra4 {[%clk 0:00:37.9]} 29... Qb6 {[%clk 0:02:27.9]} 30. Rd2 {[%clk
0:00:26.1]} 30... Kg7 {[%clk 0:02:17.6]} 31. c3 {[%clk 0:00:19.2]} 31... Rxc3
{[%clk 0:02:15.3]} 32. Qxc3 {[%clk 0:00:19.3]} 32... Rxc3 {[%clk 0:02:17.2]} 33.
Kxc3 {[%clk 0:00:20.2]} 33... Nc5 {[%clk 0:02:18.5]} 34. Rb4 {[%clk 0:00:19.7]}
34... Ne4+ {[%clk 0:02:18.1]} 0-1

[Event "*** MasterClass Titled Tuesday Blitz"]
[Site "Chess.com"]
[Date "2017.12.12"]
[Round "1"]
[White "Penguininja"]
[Black "AkshatChandra"]
[Result "0-1"]
[WhiteElo "2400"]
[BlackElo "2728"]
[TimeControl "180+2"]
[EndTime "13:06:10 PST"]
[Termination "AkshatChandra won by resignation"]

1. d4 {[%clk 0:02:47.1]} 1... Nf6 {[%clk 0:03:00.1]} 2. c4 {[%clk 0:02:46.3]}
2... e6 {[%clk 0:03:01.6]} 3. g3 {[%clk 0:02:47.4]} 3... c5 {[%clk 0:02:53.2]}
4. Nf3 {[%clk 0:02:48.3]} 4... b6 {[%clk 0:02:40.8]} 5. Bg2 {[%clk 0:01:21]}
5... Bb7 {[%clk 0:02:41.8]} 6. d5 {[%clk 0:01:20.1]} 6... exd5 {[%clk
0:02:42.6]} 7. Nh4 {[%clk 0:01:20.5]} 7... g6 {[%clk 0:02:43.1]} 8. cxd5 {[%clk
0:01:21.7]} 8... d6 {[%clk 0:02:41.3]} 9. Nc3 {[%clk 0:01:23.2]} 9... Bg7 {[%clk
0:02:42.5]} 10. O-O {[%clk 0:01:24.4]} 10... O-O {[%clk 0:02:44.2]} 11. e4
{[%clk 0:01:23.6]} 11... Na6 {[%clk 0:02:41.2]} 12. Re1 {[%clk 0:01:19.9]} 12...
Re8 {[%clk 0:02:42.7]} 13. Bg5 {[%clk 0:01:12.4]} 13... h6 {[%clk 0:02:42.5]}
14. Bd2 {[%clk 0:01:13.7]} 14... Nb4 {[%clk 0:02:39.8]} 15. Bf1 {[%clk
0:01:08.7]} 15... Ba6 {[%clk 0:02:26]} 16. Bxa6 {[%clk 0:01:08]} 16... Nxa6
{[%clk 0:02:27.9]} 17. a3 {[%clk 0:01:09.4]} 17... Qd7 {[%clk 0:02:18.5]} 18.
Ng2 {[%clk 0:01:05.1]} 18... b5 {[%clk 0:02:19]} 19. f3 {[%clk 0:00:49.3]} 19...
c4 {[%clk 0:02:14.1]} 20. Be3 {[%clk 0:00:50.6]} 20... Rac8 {[%clk 0:02:10.4]}
21. Bd4 {[%clk 0:00:51.8]} 21... Nc5 {[%clk 0:02:10.8]} 22. Bxc5 {[%clk
0:00:50.6]} 22... Rxc5 {[%clk 0:02:11.1]} 23. f4 {[%clk 0:00:48.7]} 23... a5
{[%clk 0:02:11.7]} 24. Qf3 {[%clk 0:00:33.5]} 24... b4 {[%clk 0:02:08.5]} 25.
axb4 {[%clk 0:00:33]} 25... axb4 {[%clk 0:02:10.4]} 26. Na4 {[%clk 0:00:31.7]}
26... Ra5 {[%clk 0:02:04.8]} 27. Nb6 {[%clk 0:00:32.8]} 27... Qa7 {[%clk
0:02:06.3]} 28. Rxa5 {[%clk 0:00:26]} 28... Qxb6+ {[%clk 0:02:06.9]} 29. Ne3
{[%clk 0:00:23.9]} 29... Qxa5 {[%clk 0:02:06.4]} 30. e5 {[%clk 0:00:25.6]} 30...
dxe5 {[%clk 0:02:06.3]} 31. fxe5 {[%clk 0:00:26.7]} 31... Rxe5 {[%clk
0:02:06.1]} 32. d6 {[%clk 0:00:28.1]} 32... Qc5 {[%clk 0:02:05.1]} 0-1